[Event "Early-Titled-Tuesday-Blitz-January-16-2024"]
[Site "Chess.com"]
[Date "2024.01.16"]
[Round "2"]
[White "sokidze"]
[Black "Artemiki"]
[Result "1-0"]
[WhiteElo "2770"]
[BlackElo "2469"]
[TimeControl "180+1"]
[EndTime "8:17:53 PST"]
[Termination "sokidze won on time"]

1. d4 {[%clk 0:03:00.9]} 1... Nf6 {[%clk 0:03:00.2]} 2. c4 {[%clk 0:03:00.6]}
2... c5 {[%clk 0:03:00.6]} 3. d5 {[%clk 0:03:00.3]} 3... e6 {[%clk 0:03:00.8]}
4. Nc3 {[%clk 0:03:00.1]} 4... exd5 {[%clk 0:03:00.6]} 5. cxd5 {[%clk
0:03:00.7]} 5... d6 {[%clk 0:03:01]} 6. Nf3 {[%clk 0:03:00.3]} 6... g6 {[%clk
0:03:00.8]} 7. Nd2 {[%clk 0:03:00.1]} 7... Bg7 {[%clk 0:03:00.2]} 8. e4 {[%clk
0:03:00.4]} 8... O-O {[%clk 0:02:58.2]} 9. Be2 {[%clk 0:03:00.7]} 9... Re8
{[%clk 0:02:56]} 10. O-O {[%clk 0:03:00.5]} 10... Nbd7 {[%clk 0:02:55.2]} 11. a4
{[%clk 0:02:58.6]} 11... c4 {[%clk 0:02:52.8]} 12. f3 {[%clk 0:02:48.9]} 12...
Nh5 {[%clk 0:02:43.9]} 13. Nxc4 {[%clk 0:02:46]} 13... Nb6 {[%clk 0:02:14.3]}
14. Be3 {[%clk 0:02:36.6]} 14... Nxc4 {[%clk 0:02:11.1]} 15. Bxc4 {[%clk
0:02:36.5]} 15... f5 {[%clk 0:02:09.1]} 16. Qd2 {[%clk 0:02:29.9]} 16... f4
{[%clk 0:01:50.6]} 17. Bxf4 {[%clk 0:02:04.3]} 17... Nxf4 {[%clk 0:01:45.6]} 18.
Qxf4 {[%clk 0:02:05.2]} 18... Qb6+ {[%clk 0:01:43.7]} 19. Kh1 {[%clk 0:02:05.6]}
19... Qxb2 {[%clk 0:01:43.8]} 20. Nb5 {[%clk 0:02:03.4]} 20... Be5 {[%clk
0:01:37.8]} 21. Qe3 {[%clk 0:02:00.7]} 21... Bh3 {[%clk 0:01:29.1]} 22. Be2
{[%clk 0:01:39.6]} 22... Rac8 {[%clk 0:01:03.6]} 23. Rab1 {[%clk 0:01:26.9]}
23... Qa2 {[%clk 0:00:55.5]} 24. gxh3 {[%clk 0:00:57.8]} 24... a6 {[%clk
0:00:40.7]} 25. f4 {[%clk 0:00:55.9]} 25... Rc2 {[%clk 0:00:21.6]} 26. fxe5
{[%clk 0:00:42.3]} 26... Rxe2 {[%clk 0:00:12.6]} 27. Qf4 {[%clk 0:00:41.8]}
27... Kg7 {[%clk 0:00:05.3]} 28. Nc3 {[%clk 0:00:39]} 1-0

[Event "Early-Titled-Tuesday-Blitz-January-16-2024"]
[Site "Chess.com"]
[Date "2024.01.16"]
[Round "2"]
[White "Schachmalanders"]
[Black "KnightmareJoker"]
[Result "1-0"]
[WhiteElo "2455"]
[BlackElo "2083"]
[TimeControl "180+1"]
[EndTime "8:17:53 PST"]
[Termination "Schachmalanders won by resignation"]

1. e4 {[%clk 0:03:00.9]} 1... e5 {[%clk 0:02:59.8]} 2. Nf3 {[%clk 0:03:00.7]}
2... Nc6 {[%clk 0:03:00.5]} 3. Bc4 {[%clk 0:03:00.7]} 3... Bc5 {[%clk
0:03:00.4]} 4. O-O {[%clk 0:03:00.5]} 4... Nf6 {[%clk 0:03:00.7]} 5. d3 {[%clk
0:03:00.9]} 5... d6 {[%clk 0:03:00.8]} 6. h3 {[%clk 0:03:00]} 6... h6 {[%clk
0:02:57.5]} 7. c3 {[%clk 0:03:00.2]} 7... O-O {[%clk 0:02:57.3]} 8. b4 {[%clk
0:02:58.9]} 8... Bb6 {[%clk 0:02:57.3]} 9. a4 {[%clk 0:02:59.5]} 9... a5 {[%clk
0:02:57.4]} 10. b5 {[%clk 0:02:58.9]} 10... Ne7 {[%clk 0:02:57.5]} 11. Be3
{[%clk 0:02:57.5]} 11... Bxe3 {[%clk 0:02:49.1]} 12. fxe3 {[%clk 0:02:56.5]}
12... Be6 {[%clk 0:02:45.1]} 13. Nbd2 {[%clk 0:02:56]} 13... Ng6 {[%clk
0:02:41.3]} 14. Bxe6 {[%clk 0:02:37.9]} 14... fxe6 {[%clk 0:02:41.5]} 15. Qb3
{[%clk 0:02:38.6]} 15... d5 {[%clk 0:02:30]} 16. exd5 {[%clk 0:02:36.6]} 16...
exd5 {[%clk 0:02:17.5]} 17. e4 {[%clk 0:02:31.4]} 17... Kh8 {[%clk 0:02:16]} 18.
exd5 {[%clk 0:02:25.9]} 18... Nxd5 {[%clk 0:02:15]} 19. Rae1 {[%clk 0:02:26.4]}
19... Ndf4 {[%clk 0:02:04.5]} 20. d4 {[%clk 0:02:12.2]} 20... exd4 {[%clk
0:01:54]} 21. cxd4 {[%clk 0:02:06.7]} 21... Nh4 {[%clk 0:01:44.1]} 22. Nxh4
{[%clk 0:01:09.4]} 22... Qxh4 {[%clk 0:01:13.2]} 23. Kh2 {[%clk 0:01:08.4]}
23... Qd8 {[%clk 0:00:57.1]} 24. Nf3 {[%clk 0:01:06.4]} 24... Qd6 {[%clk
0:00:56.2]} 25. Ne5 {[%clk 0:00:55.3]} 25... Nd5 {[%clk 0:00:30.9]} 26. Qg3
{[%clk 0:00:51.8]} 26... Ne7 {[%clk 0:00:26.1]} 27. Nf7+ {[%clk 0:00:48.5]}
27... Rxf7 {[%clk 0:00:25]} 28. Rxf7 {[%clk 0:00:49.4]} 28... Qxg3+ {[%clk
0:00:23.8]} 29. Kxg3 {[%clk 0:00:49.6]} 29... Nd5 {[%clk 0:00:23]} 30. Rd7
{[%clk 0:00:46.4]} 30... Nc3 {[%clk 0:00:22.2]} 31. Rxc7 {[%clk 0:00:41.2]}
31... Nxa4 {[%clk 0:00:22.9]} 32. Rxb7 {[%clk 0:00:41.4]} 32... Nc3 {[%clk
0:00:23.6]} 33. b6 {[%clk 0:00:37.1]} 33... a4 {[%clk 0:00:24.1]} 34. Rc7 {[%clk
0:00:32.7]} 34... Nd5 {[%clk 0:00:20.7]} 35. b7 {[%clk 0:00:33]} 35... Nxc7
{[%clk 0:00:19.9]} 36. bxa8=Q+ {[%clk 0:00:33.4]} 36... Nxa8 {[%clk 0:00:20.3]}
37. Re8+ {[%clk 0:00:34.1]} 1-0

[Event "Early-Titled-Tuesday-Blitz-January-16-2024"]
[Site "Chess.com"]
[Date "2024.01.16"]
[Round "2"]
[White "Nuvas"]
[Black "Leebit02"]
[Result "0-1"]
[WhiteElo "2789"]
[BlackElo "2563"]
[TimeControl "180+1"]
[EndTime "8:17:55 PST"]
[Termination "Leebit02 won by resignation"]

1. d4 {[%clk 0:02:58]} 1... d5 {[%clk 0:02:58.2]} 2. c4 {[%clk 0:02:58.2]} 2...
dxc4 {[%clk 0:02:58.3]} 3. e3 {[%clk 0:02:58.3]} 3... Nf6 {[%clk 0:02:55.5]} 4.
Bxc4 {[%clk 0:02:58]} 4... e6 {[%clk 0:02:56.1]} 5. Nf3 {[%clk 0:02:57.9]} 5...
c5 {[%clk 0:02:55.9]} 6. O-O {[%clk 0:02:58.1]} 6... a6 {[%clk 0:02:56.4]} 7.
Re1 {[%clk 0:02:58.4]} 7... Nc6 {[%clk 0:02:45.9]} 8. Nc3 {[%clk 0:02:55.2]}
8... b5 {[%clk 0:02:39.4]} 9. Bd3 {[%clk 0:02:55.4]} 9... Bb7 {[%clk 0:02:34.3]}
10. a4 {[%clk 0:02:49.4]} 10... b4 {[%clk 0:02:31.8]} 11. Ne4 {[%clk 0:02:49.3]}
11... Qa5 {[%clk 0:01:59.7]} 12. Bd2 {[%clk 0:02:15.2]} 12... Rd8 {[%clk
0:01:46.4]} 13. Nxf6+ {[%clk 0:01:18.7]} 13... gxf6 {[%clk 0:01:46.1]} 14. Be4
{[%clk 0:01:11.4]} 14... f5 {[%clk 0:01:23.9]} 15. Bxc6+ {[%clk 0:01:11.2]}
15... Bxc6 {[%clk 0:01:24.5]} 16. Ne5 {[%clk 0:01:11.8]} 16... Bb7 {[%clk
0:01:23.7]} 17. Qh5 {[%clk 0:00:58.2]} 17... Qc7 {[%clk 0:01:23.2]} 18. Rac1
{[%clk 0:00:51]} 18... a5 {[%clk 0:01:12.5]} 19. f4 {[%clk 0:00:32.4]} 19... Bd6
{[%clk 0:01:09.6]} 20. Re2 {[%clk 0:00:27.3]} 20... Bxe5 {[%clk 0:00:50.9]} 21.
Rxc5 {[%clk 0:00:26.9]} 21... Qd7 {[%clk 0:00:44.2]} 22. Rxe5 {[%clk 0:00:22.1]}
22... Bd5 {[%clk 0:00:39.7]} 23. Qxf5 {[%clk 0:00:19.9]} 23... Qxa4 {[%clk
0:00:34.9]} 24. Qf6 {[%clk 0:00:19.7]} 24... Rg8 {[%clk 0:00:32.2]} 25. f5
{[%clk 0:00:19.2]} 25... Qd1+ {[%clk 0:00:30.5]} 26. Re1 {[%clk 0:00:10]} 26...
Rxg2+ {[%clk 0:00:29.8]} 27. Kh1 {[%clk 0:00:07.4]} 27... Qxd2 {[%clk
0:00:23.1]} 28. Rxd5 {[%clk 0:00:07.8]} 28... Rxh2+ {[%clk 0:00:22.4]} 0-1

[Event "Early-Titled-Tuesday-Blitz-January-16-2024"]
[Site "Chess.com"]
[Date "2024.01.16"]
[Round "2"]
[White "Niilo1"]
[Black "Aguiar94"]
[Result "0-1"]
[WhiteElo "2277"]
[BlackElo "2526"]
[TimeControl "180+1"]
[EndTime "8:17:55 PST"]
[Termination "Aguiar94 won by resignation"]

1. e4 {[%clk 0:02:57.9]} 1... c5 {[%clk 0:02:59.4]} 2. Nf3 {[%clk 0:02:57.3]}
2... e6 {[%clk 0:02:59.1]} 3. d4 {[%clk 0:02:57.4]} 3... cxd4 {[%clk 0:03:00]}
4. Nxd4 {[%clk 0:02:58.3]} 4... Nc6 {[%clk 0:03:00]} 5. Nc3 {[%clk 0:02:57.3]}
5... Qc7 {[%clk 0:03:00.3]} 6. a3 {[%clk 0:02:56.4]} 6... a6 {[%clk 0:03:00.6]}
7. Be3 {[%clk 0:02:53]} 7... Nf6 {[%clk 0:03:00.8]} 8. Qf3 {[%clk 0:02:51.4]}
8... Nxd4 {[%clk 0:02:59.2]} 9. Bxd4 {[%clk 0:02:51.2]} 9... e5 {[%clk
0:02:59.9]} 10. Be3 {[%clk 0:02:49.8]} 10... d6 {[%clk 0:03:00.5]} 11. h3 {[%clk
0:02:45.8]} 11... h6 {[%clk 0:02:59.8]} 12. O-O-O {[%clk 0:02:42.8]} 12... Be6
{[%clk 0:03:00.2]} 13. Nd5 {[%clk 0:02:36.9]} 13... Nxd5 {[%clk 0:02:47.3]} 14.
exd5 {[%clk 0:02:37.8]} 14... Bd7 {[%clk 0:02:47.8]} 15. Bd3 {[%clk 0:02:27.1]}
15... g6 {[%clk 0:02:48.4]} 16. h4 {[%clk 0:02:23.7]} 16... h5 {[%clk
0:02:44.8]} 17. Qg3 {[%clk 0:02:18.3]} 17... Rc8 {[%clk 0:02:30.3]} 18. Bxg6
{[%clk 0:02:08.9]} 18... Bg4 {[%clk 0:02:12.4]} 19. Bd3 {[%clk 0:01:55.3]} 19...
Bxd1 {[%clk 0:02:09.7]} 20. Rxd1 {[%clk 0:01:56.2]} 20... Qd7 {[%clk 0:01:42.6]}
21. Qg5 {[%clk 0:01:42.4]} 21... Be7 {[%clk 0:01:34.2]} 22. Qg3 {[%clk
0:01:35.9]} 22... Qg4 {[%clk 0:01:32.5]} 23. Qxg4 {[%clk 0:01:26.6]} 23... hxg4
{[%clk 0:01:33.4]} 24. g3 {[%clk 0:01:27.3]} 24... Rh5 {[%clk 0:01:27.2]} 25.
Be2 {[%clk 0:01:10.6]} 25... f5 {[%clk 0:01:26]} 26. f3 {[%clk 0:01:11]} 26...
gxf3 {[%clk 0:01:16.8]} 27. Bxf3 {[%clk 0:01:11.9]} 27... Rh7 {[%clk 0:01:15.2]}
28. Rf1 {[%clk 0:00:53.1]} 28... Kd7 {[%clk 0:01:10.6]} 29. Bg2 {[%clk
0:00:42.9]} 29... Rg8 {[%clk 0:01:02.4]} 30. Bh3 {[%clk 0:00:42.7]} 30... Ke8
{[%clk 0:00:52]} 31. Bxf5 {[%clk 0:00:41.4]} 31... Rf7 {[%clk 0:00:50.8]} 32. g4
{[%clk 0:00:40]} 32... Rxg4 {[%clk 0:00:50.8]} 33. h5 {[%clk 0:00:31.7]} 33...
Bg5 {[%clk 0:00:49.8]} 34. Bxg5 {[%clk 0:00:10]} 34... Rxg5 {[%clk 0:00:50.7]}
35. Bg6 {[%clk 0:00:10.7]} 35... Rxg6 {[%clk 0:00:48.8]} 36. Rxf7 {[%clk
0:00:09.9]} 36... Rg1+ {[%clk 0:00:49.5]} 0-1

[Event "Early-Titled-Tuesday-Blitz-January-16-2024"]
[Site "Chess.com"]
[Date "2024.01.16"]
[Round "2"]
[White "SaqoChess_Twitch"]
[Black "crescentmoon2411"]
[Result "0-1"]
[WhiteElo "2604"]
[BlackElo "2929"]
[TimeControl "180+1"]
[EndTime "8:18:00 PST"]
[Termination "crescentmoon2411 won by checkmate"]

1. d4 {[%clk 0:02:59]} 1... Nf6 {[%clk 0:02:59.4]} 2. c4 {[%clk 0:02:59.6]} 2...
e6 {[%clk 0:02:58.8]} 3. Nc3 {[%clk 0:03:00.2]} 3... d5 {[%clk 0:02:57.2]} 4.
cxd5 {[%clk 0:03:00.1]} 4... exd5 {[%clk 0:02:58.1]} 5. Bg5 {[%clk 0:03:00.3]}
5... c6 {[%clk 0:02:57.8]} 6. e3 {[%clk 0:03:00.6]} 6... Bd6 {[%clk 0:02:56.5]}
7. Bd3 {[%clk 0:03:00.8]} 7... Be6 {[%clk 0:02:54.3]} 8. Qc2 {[%clk 0:03:01.1]}
8... Nbd7 {[%clk 0:02:53.1]} 9. Nf3 {[%clk 0:03:01.7]} 9... h6 {[%clk
0:02:52.7]} 10. Bh4 {[%clk 0:03:00.1]} 10... Qb8 {[%clk 0:02:44.2]} 11. O-O
{[%clk 0:02:59.3]} 11... Ng4 {[%clk 0:02:38.1]} 12. Bg3 {[%clk 0:02:58.9]} 12...
Bxg3 {[%clk 0:02:37.5]} 13. hxg3 {[%clk 0:02:59.8]} 13... h5 {[%clk 0:02:37.9]}
14. Bf5 {[%clk 0:02:58.8]} 14... Bxf5 {[%clk 0:02:35.3]} 15. Qxf5 {[%clk
0:02:58.5]} 15... g6 {[%clk 0:02:34.2]} 16. Qf4 {[%clk 0:02:54.8]} 16... Qxf4
{[%clk 0:02:33.8]} 17. gxf4 {[%clk 0:02:52]} 17... a5 {[%clk 0:02:14.1]} 18.
Rac1 {[%clk 0:02:49.1]} 18... a4 {[%clk 0:02:10.8]} 19. a3 {[%clk 0:02:48.9]}
19... Nb6 {[%clk 0:02:09]} 20. Nd2 {[%clk 0:02:43.9]} 20... O-O {[%clk
0:02:04.9]} 21. g3 {[%clk 0:02:38]} 21... Kg7 {[%clk 0:02:04.2]} 22. Kg2 {[%clk
0:02:38]} 22... Rfe8 {[%clk 0:02:04.5]} 23. Rfe1 {[%clk 0:02:37.2]} 23... Re7
{[%clk 0:02:00.1]} 24. Nd1 {[%clk 0:02:36.4]} 24... Rae8 {[%clk 0:01:57.5]} 25.
b3 {[%clk 0:02:28.1]} 25... axb3 {[%clk 0:01:56.7]} 26. Nxb3 {[%clk 0:02:29]}
26... Nc4 {[%clk 0:01:57.2]} 27. a4 {[%clk 0:02:27.7]} 27... Nh6 {[%clk
0:01:52.9]} 28. Rc2 {[%clk 0:02:23.4]} 28... Nf5 {[%clk 0:01:52.7]} 29. Nb2
{[%clk 0:02:23.7]} 29... Nfxe3+ {[%clk 0:01:47.3]} 30. fxe3 {[%clk 0:02:19.7]}
30... Nxe3+ {[%clk 0:01:46.4]} 31. Rxe3 {[%clk 0:02:19.8]} 31... Rxe3 {[%clk
0:01:47.3]} 32. Nc1 {[%clk 0:02:15.6]} 32... R8e4 {[%clk 0:01:37.8]} 33. Rd2
{[%clk 0:02:13.4]} 33... h4 {[%clk 0:01:34.3]} 34. gxh4 {[%clk 0:02:03.8]} 34...
Rxf4 {[%clk 0:01:34.3]} 35. Nd1 {[%clk 0:02:00.5]} 35... Rg4+ {[%clk 0:01:28.2]}
36. Kf2 {[%clk 0:01:57.1]} 36... Rh3 {[%clk 0:01:27]} 37. Ne2 {[%clk 0:01:49.8]}
37... Rh2+ {[%clk 0:01:16.1]} 38. Ke1 {[%clk 0:01:49.5]} 38... Rgxh4 {[%clk
0:01:05.2]} 39. Nf2 {[%clk 0:01:49.6]} 39... Rg2 {[%clk 0:00:44.4]} 40. Rb2
{[%clk 0:01:49.6]} 40... Rhh2 {[%clk 0:00:44.4]} 41. Nf4 {[%clk 0:01:38.6]}
41... Rg1+ {[%clk 0:00:42.3]} 42. Ke2 {[%clk 0:01:39]} 42... g5 {[%clk
0:00:37.9]} 43. Nh3 {[%clk 0:01:27.4]} 43... Rg3 {[%clk 0:00:36.4]} 44. Rxb7
{[%clk 0:01:04.7]} 44... Rgxh3 {[%clk 0:00:36]} 45. a5 {[%clk 0:01:05.2]} 45...
Ra3 {[%clk 0:00:35]} 46. Kf1 {[%clk 0:01:05.8]} 46... Ra1+ {[%clk 0:00:34]} 47.
Ke2 {[%clk 0:01:05]} 47... Ra2+ {[%clk 0:00:34.2]} 48. Kf3 {[%clk 0:01:05.9]}
48... Rhxf2+ {[%clk 0:00:33.7]} 49. Kg4 {[%clk 0:01:06.6]} 49... Kg6 {[%clk
0:00:31.1]} 50. a6 {[%clk 0:01:06]} 50... Ra3 {[%clk 0:00:25.6]} 51. Rxf7 {[%clk
0:00:59.2]} 51... Rg2# {[%clk 0:00:25.1]} 0-1

[Event "Early-Titled-Tuesday-Blitz-January-16-2024"]
[Site "Chess.com"]
[Date "2024.01.16"]
[Round "2"]
[White "Jospem"]
[Black "Timerkhanov"]
[Result "1-0"]
[WhiteElo "3079"]
[BlackElo "2658"]
[TimeControl "180+1"]
[EndTime "8:18:05 PST"]
[Termination "Jospem won by resignation"]

1. e4 {[%clk 0:03:00.9]} 1... c5 {[%clk 0:02:59.6]} 2. Nf3 {[%clk 0:03:01]} 2...
a6 {[%clk 0:03:00.2]} 3. c3 {[%clk 0:03:01.2]} 3... d5 {[%clk 0:03:00.1]} 4.
exd5 {[%clk 0:03:01.8]} 4... Nf6 {[%clk 0:02:59.3]} 5. d4 {[%clk 0:02:58.4]}
5... cxd4 {[%clk 0:02:59.2]} 6. cxd4 {[%clk 0:02:58.8]} 6... Nxd5 {[%clk
0:02:58.6]} 7. Nc3 {[%clk 0:02:58.3]} 7... Nc6 {[%clk 0:02:56.3]} 8. Bc4 {[%clk
0:02:58.5]} 8... e6 {[%clk 0:02:56.4]} 9. O-O {[%clk 0:02:58.5]} 9... Be7 {[%clk
0:02:56.3]} 10. Bd3 {[%clk 0:02:57.6]} 10... Nf6 {[%clk 0:02:53.2]} 11. Bg5
{[%clk 0:02:56.2]} 11... O-O {[%clk 0:02:51]} 12. a3 {[%clk 0:02:56.4]} 12... b5
{[%clk 0:02:49.5]} 13. Bc2 {[%clk 0:02:52.4]} 13... Bb7 {[%clk 0:02:44.6]} 14.
Qd3 {[%clk 0:02:52.4]} 14... g6 {[%clk 0:02:45]} 15. Rad1 {[%clk 0:02:52.5]}
15... Nd5 {[%clk 0:02:43.2]} 16. Bh6 {[%clk 0:02:51.8]} 16... Re8 {[%clk
0:02:43.1]} 17. Ne4 {[%clk 0:02:40.9]} 17... Rc8 {[%clk 0:02:39.4]} 18. Bb1
{[%clk 0:02:39.6]} 18... b4 {[%clk 0:02:21.8]} 19. Nc5 {[%clk 0:02:37.4]} 19...
Qb6 {[%clk 0:02:11.4]} 20. Rc1 {[%clk 0:02:37.4]} 20... a5 {[%clk 0:02:07.2]}
21. Nxb7 {[%clk 0:02:25.8]} 21... Qxb7 {[%clk 0:02:07.3]} 22. Ba2 {[%clk
0:02:26.1]} 22... Bf6 {[%clk 0:02:02.2]} 23. h4 {[%clk 0:02:20]} 23... bxa3
{[%clk 0:01:55.9]} 24. bxa3 {[%clk 0:02:19.9]} 24... Qb2 {[%clk 0:01:56.1]} 25.
Rc2 {[%clk 0:02:10.2]} 25... Ncb4 {[%clk 0:01:48.6]} 26. Qxg6+ {[%clk
0:01:27.5]} 26... hxg6 {[%clk 0:01:39.2]} 27. Rxb2 {[%clk 0:01:28.4]} 27... Nxa2
{[%clk 0:01:28.1]} 28. Rxa2 {[%clk 0:01:29.3]} 28... Rc4 {[%clk 0:01:24.8]} 29.
Rd2 {[%clk 0:01:19.2]} 29... Rb8 {[%clk 0:01:22.7]} 30. Ra1 {[%clk 0:01:05.8]}
30... Rb3 {[%clk 0:01:20.5]} 31. Kh2 {[%clk 0:01:03.5]} 31... Ra4 {[%clk
0:01:17.9]} 32. Rc1 {[%clk 0:01:00.6]} 32... Raxa3 {[%clk 0:00:54.6]} 33. Rc8+
{[%clk 0:01:00.4]} 33... Kh7 {[%clk 0:00:54.9]} 34. Bg5 {[%clk 0:01:01.2]} 34...
Kg7 {[%clk 0:00:47.2]} 35. Ne5 {[%clk 0:00:54]} 35... Rb7 {[%clk 0:00:42.8]} 36.
Rdc2 {[%clk 0:00:43.3]} 36... Bxg5 {[%clk 0:00:41.7]} 37. hxg5 {[%clk
0:00:44.2]} 37... Ra4 {[%clk 0:00:40]} 38. Ra8 {[%clk 0:00:39.5]} 38... Nc7
{[%clk 0:00:35.3]} 39. Rd8 {[%clk 0:00:39.6]} 39... Rab4 {[%clk 0:00:24.4]} 40.
Rc3 {[%clk 0:00:39.4]} 40... a4 {[%clk 0:00:21.6]} 41. Rh3 {[%clk 0:00:36.4]}
41... Rb8 {[%clk 0:00:21.6]} 42. Rd7 {[%clk 0:00:36.7]} 1-0

[Event "Early-Titled-Tuesday-Blitz-January-16-2024"]
[Site "Chess.com"]
[Date "2024.01.16"]
[Round "2"]
[White "shimastream"]
[Black "Shuvalov"]
[Result "1-0"]
[WhiteElo "3007"]
[BlackElo "2540"]
[TimeControl "180+1"]
[EndTime "8:18:05 PST"]
[Termination "shimastream won on time"]

1. e4 {[%clk 0:03:00.9]} 1... e6 {[%clk 0:02:07.7]} 2. Qe2 {[%clk 0:02:49.8]}
2... c5 {[%clk 0:02:07]} 3. Nf3 {[%clk 0:02:47.9]} 3... Nc6 {[%clk 0:02:07.3]}
4. d3 {[%clk 0:02:47.3]} 4... Nf6 {[%clk 0:02:06.6]} 5. g3 {[%clk 0:02:46.6]}
5... d5 {[%clk 0:02:06.7]} 6. Bg2 {[%clk 0:02:45.8]} 6... Be7 {[%clk 0:02:07]}
7. O-O {[%clk 0:02:45.6]} 7... O-O {[%clk 0:02:07.1]} 8. e5 {[%clk 0:02:45.6]}
8... Ne8 {[%clk 0:02:07.7]} 9. c4 {[%clk 0:02:45.2]} 9... Nc7 {[%clk 0:02:07.7]}
10. Nc3 {[%clk 0:02:43.9]} 10... Rb8 {[%clk 0:02:06.6]} 11. h4 {[%clk
0:02:38.2]} 11... b5 {[%clk 0:02:06.5]} 12. b3 {[%clk 0:02:36.4]} 12... bxc4
{[%clk 0:02:05.5]} 13. dxc4 {[%clk 0:02:33.5]} 13... Ba6 {[%clk 0:02:05.4]} 14.
Rd1 {[%clk 0:02:24.1]} 14... Qc8 {[%clk 0:01:56.2]} 15. h5 {[%clk 0:02:14.2]}
15... h6 {[%clk 0:01:55]} 16. g4 {[%clk 0:01:55.5]} 16... dxc4 {[%clk
0:01:20.6]} 17. bxc4 {[%clk 0:01:46.3]} 17... Na5 {[%clk 0:01:20.7]} 18. g5
{[%clk 0:01:44.2]} 18... Bxc4 {[%clk 0:01:15.6]} 19. Qe4 {[%clk 0:01:43.9]}
19... Nd5 {[%clk 0:01:00.6]} 20. Bd2 {[%clk 0:01:39.9]} 20... Rb4 {[%clk
0:00:46.8]} 21. gxh6 {[%clk 0:01:12.3]} 21... Bb3 {[%clk 0:00:36.5]} 22. Qd3
{[%clk 0:00:55.7]} 22... Bxd1 {[%clk 0:00:25.1]} 23. hxg7 {[%clk 0:00:56]} 23...
Rd8 {[%clk 0:00:20.2]} 24. Rxd1 {[%clk 0:00:42.7]} 24... Rg4 {[%clk 0:00:17]}
25. Qb1 {[%clk 0:00:31.6]} 25... Nc4 {[%clk 0:00:13.6]} 26. Nxd5 {[%clk
0:00:24.7]} 26... Rxd5 {[%clk 0:00:12]} 27. Bh6 {[%clk 0:00:24.7]} 27... Rxd1+
{[%clk 0:00:05.3]} 28. Qxd1 {[%clk 0:00:25.6]} 28... Qc6 {[%clk 0:00:05.1]} 29.
Qe2 {[%clk 0:00:18.5]} 1-0